[Event "Late-Titled-Tuesday-Blitz-May-28-2024"]
[Site "Chess.com"]
[Date "2024.05.28"]
[Round "7"]
[White "RandomNoob04"]
[Black "LiemLe"]
[Result "1/2-1/2"]
[WhiteElo "2779"]
[BlackElo "3014"]
[TimeControl "180+1"]
[EndTime "15:19:22 PDT"]
[Termination "Game drawn - insufficient material"]

1. e4 {[%clk 0:03:00.9]} 1... c5 {[%clk 0:02:58.7]} 2. d4 {[%clk 0:03:01.5]}
2... cxd4 {[%clk 0:02:58.9]} 3. c3 {[%clk 0:03:02.1]} 3... dxc3 {[%clk
0:02:59.8]} 4. Nxc3 {[%clk 0:03:02.7]} 4... Nc6 {[%clk 0:03:00]} 5. Nf3 {[%clk
0:03:03.2]} 5... d6 {[%clk 0:02:56.4]} 6. Bc4 {[%clk 0:03:03.7]} 6... a6 {[%clk
0:02:56.2]} 7. O-O {[%clk 0:03:04.2]} 7... Nf6 {[%clk 0:02:56.6]} 8. Bf4 {[%clk
0:03:04.7]} 8... Bg4 {[%clk 0:02:55.9]} 9. h3 {[%clk 0:03:05.3]} 9... Bxf3
{[%clk 0:02:55.8]} 10. Qxf3 {[%clk 0:03:06.2]} 10... e6 {[%clk 0:02:56.4]} 11.
Rfd1 {[%clk 0:03:06.8]} 11... Qb8 {[%clk 0:02:54.9]} 12. Be2 {[%clk 0:03:07.4]}
12... Ne5 {[%clk 0:02:32.6]} 13. Qg3 {[%clk 0:03:07.7]} 13... h5 {[%clk
0:02:33.1]} 14. Rac1 {[%clk 0:02:59]} 14... h4 {[%clk 0:02:32.8]} 15. Qe3 {[%clk
0:02:56.4]} 15... b5 {[%clk 0:02:22]} 16. a4 {[%clk 0:02:46.4]} 16... Nc4 {[%clk
0:01:34.1]} 17. Qf3 {[%clk 0:02:46]} 17... Be7 {[%clk 0:01:19.6]} 18. axb5
{[%clk 0:02:34.6]} 18... axb5 {[%clk 0:01:20.3]} 19. Nxb5 {[%clk 0:02:34.1]}
19... Qxb5 {[%clk 0:01:16.7]} 20. Bxc4 {[%clk 0:02:33.6]} 20... Qb7 {[%clk
0:01:08.3]} 21. Bxd6 {[%clk 0:01:37.1]} 21... Bxd6 {[%clk 0:01:07.5]} 22. Rxd6
{[%clk 0:01:37.7]} 22... O-O {[%clk 0:01:03.7]} 23. b3 {[%clk 0:01:21.4]} 23...
Qxe4 {[%clk 0:00:41.3]} 24. Qxe4 {[%clk 0:01:20.3]} 24... Nxe4 {[%clk
0:00:42.2]} 25. Rd4 {[%clk 0:01:20.7]} 25... Nc5 {[%clk 0:00:42.6]} 26. Rxh4
{[%clk 0:01:20]} 26... Rfb8 {[%clk 0:00:42.1]} 27. Rc3 {[%clk 0:01:17.2]} 27...
Ra1+ {[%clk 0:00:36.3]} 28. Kh2 {[%clk 0:01:17.6]} 28... Rb1 {[%clk 0:00:35.9]}
29. Rg3 {[%clk 0:00:49.1]} 29... g6 {[%clk 0:00:29.5]} 30. Rf4 {[%clk
0:00:38.9]} 30... Nxb3 {[%clk 0:00:24.3]} 31. h4 {[%clk 0:00:29.7]} 31... Nd2
{[%clk 0:00:20.4]} 32. h5 {[%clk 0:00:28.1]} 32... Kg7 {[%clk 0:00:09]} 33. Bd3
{[%clk 0:00:18.2]} 33... Nf1+ {[%clk 0:00:02.6]} 34. Bxf1 {[%clk 0:00:17.5]}
34... Rxf1 {[%clk 0:00:03.5]} 35. hxg6 {[%clk 0:00:14.1]} 35... Rh8+ {[%clk
0:00:03.7]} 36. Rh3 {[%clk 0:00:14.4]} 36... Rxh3+ {[%clk 0:00:04.1]} 37. Kxh3
{[%clk 0:00:14.9]} 37... Kxg6 {[%clk 0:00:04.9]} 38. Kg3 {[%clk 0:00:15]} 38...
f5 {[%clk 0:00:05]} 39. Ra4 {[%clk 0:00:14.1]} 39... e5 {[%clk 0:00:04.6]} 40.
f3 {[%clk 0:00:14.3]} 40... Kg5 {[%clk 0:00:03]} 41. Ra8 {[%clk 0:00:11.4]}
41... f4+ {[%clk 0:00:03.2]} 42. Kh2 {[%clk 0:00:11.6]} 42... Re1 {[%clk
0:00:04.1]} 43. Rg8+ {[%clk 0:00:11.5]} 43... Kf6 {[%clk 0:00:04.7]} 44. Rf8+
{[%clk 0:00:12.1]} 44... Kg7 {[%clk 0:00:05.1]} 45. Re8 {[%clk 0:00:12.4]} 45...
Re2 {[%clk 0:00:05.7]} 46. Kh3 {[%clk 0:00:11.9]} 46... Kf7 {[%clk 0:00:06.4]}
47. Rh8 {[%clk 0:00:11.2]} 47... Kf6 {[%clk 0:00:06.9]} 48. Rf8+ {[%clk
0:00:10.5]} 48... Kg7 {[%clk 0:00:07.3]} 49. Re8 {[%clk 0:00:10.6]} 49... Kg6
{[%clk 0:00:07.5]} 50. g3 {[%clk 0:00:09.5]} 50... Re3 {[%clk 0:00:06.4]} 51.
Kg4 {[%clk 0:00:08]} 51... Kf7 {[%clk 0:00:05.1]} 52. Rh8 {[%clk 0:00:07.1]}
52... fxg3 {[%clk 0:00:05.4]} 53. Kxg3 {[%clk 0:00:08]} 53... e4 {[%clk
0:00:05.9]} 54. Kf4 {[%clk 0:00:06.8]} 54... Rxf3+ {[%clk 0:00:05.8]} 55. Kxe4
{[%clk 0:00:07.4]} 55... Ra3 {[%clk 0:00:06.2]} 56. Rh7+ {[%clk 0:00:06.5]}
56... Kg6 {[%clk 0:00:06.6]} 57. Re7 {[%clk 0:00:06.8]} 57... Ra1 {[%clk
0:00:06.9]} 58. Re5 {[%clk 0:00:06.7]} 58... Kf6 {[%clk 0:00:06.8]} 59. Rf5+
{[%clk 0:00:07.3]} 59... Ke6 {[%clk 0:00:07]} 60. Re5+ {[%clk 0:00:08]} 60...
Kd6 {[%clk 0:00:07.7]} 61. Rd5+ {[%clk 0:00:08.7]} 61... Kc6 {[%clk 0:00:08.4]}
62. Rd3 {[%clk 0:00:09.3]} 62... Rh1 {[%clk 0:00:07.7]} 63. Kd4 {[%clk
0:00:09.6]} 63... Kb5 {[%clk 0:00:06.5]} 64. Kc3 {[%clk 0:00:10.5]} 64... Rh5
{[%clk 0:00:05.9]} 65. Rd4 {[%clk 0:00:10.5]} 65... Rh3+ {[%clk 0:00:05.7]} 66.
Rd3 {[%clk 0:00:11]} 66... Rh4 {[%clk 0:00:05.6]} 67. Rd4 {[%clk 0:00:11.2]}
67... Rh5 {[%clk 0:00:05.5]} 68. Rd3 {[%clk 0:00:11.7]} 68... Kc5 {[%clk
0:00:06.1]} 69. Kd2 {[%clk 0:00:12]} 69... Kc4 {[%clk 0:00:05.8]} 70. Re3 {[%clk
0:00:12.2]} 70... Kd4 {[%clk 0:00:06.1]} 71. Rd3+ {[%clk 0:00:12.5]} 71... Ke4
{[%clk 0:00:06.7]} 72. Re3+ {[%clk 0:00:13.2]} 72... Kf4 {[%clk 0:00:07.3]} 73.
Rd3 {[%clk 0:00:13.7]} 73... Ra5 {[%clk 0:00:07.7]} 74. Rd4+ {[%clk 0:00:13.8]}
74... Ke5 {[%clk 0:00:08.3]} 75. Rd3 {[%clk 0:00:14.7]} 75... Ke4 {[%clk
0:00:08.4]} 76. Re3+ {[%clk 0:00:14.9]} 76... Kf4 {[%clk 0:00:09]} 77. Rd3
{[%clk 0:00:15.4]} 77... Ra4 {[%clk 0:00:08.7]} 78. Rc3 {[%clk 0:00:15.5]} 78...
Ke4 {[%clk 0:00:09]} 79. Kc2 {[%clk 0:00:16.1]} 79... Kd4 {[%clk 0:00:09.1]} 80.
Rd3+ {[%clk 0:00:16.6]} 80... Kc4 {[%clk 0:00:09.4]} 81. Rc3+ {[%clk 0:00:17.3]}
81... Kb4 {[%clk 0:00:09.9]} 82. Rb3+ {[%clk 0:00:17.5]} 82... Kc5 {[%clk
0:00:10.4]} 83. Rc3+ {[%clk 0:00:18.1]} 83... Kd4 {[%clk 0:00:10.9]} 84. Rd3+
{[%clk 0:00:18.7]} 84... Ke4 {[%clk 0:00:11.6]} 85. Rc3 {[%clk 0:00:19.3]} 85...
Ra2+ {[%clk 0:00:11.5]} 86. Kb3 {[%clk 0:00:19.6]} 86... Rd2 {[%clk 0:00:12.1]}
87. Rc4+ {[%clk 0:00:19.6]} 87... Kd5 {[%clk 0:00:12.6]} 88. Rc8 {[%clk
0:00:20.4]} 88... Ke6 {[%clk 0:00:12.1]} 89. Re8+ {[%clk 0:00:20]} 89... Kd7
{[%clk 0:00:12.2]} 90. Re3 {[%clk 0:00:20.7]} 90... Rd6 {[%clk 0:00:12.3]} 91.
Rc3 {[%clk 0:00:21.3]} 91... Rb6+ {[%clk 0:00:12.4]} 92. Kc2 {[%clk 0:00:22.2]}
92... Ke6 {[%clk 0:00:12.8]} 93. Re3+ {[%clk 0:00:22.3]} 93... Kd5 {[%clk
0:00:13.2]} 94. Rd3+ {[%clk 0:00:23.2]} 94... Ke4 {[%clk 0:00:13.8]} 95. Rc3
{[%clk 0:00:23.7]} 95... Ra6 {[%clk 0:00:13.7]} 96. Rc4+ {[%clk 0:00:23.9]}
96... Ke3 {[%clk 0:00:14.2]} 97. Rc3+ {[%clk 0:00:24.8]} 97... Ke2 {[%clk
0:00:14.6]} 98. Rc4 {[%clk 0:00:25]} 98... Ra2+ {[%clk 0:00:14.9]} 99. Kb3
{[%clk 0:00:25.3]} 99... Rd2 {[%clk 0:00:15.3]} 100. Rc2 {[%clk 0:00:25.7]}
100... Rxc2 {[%clk 0:00:15.7]} 101. Kxc2 {[%clk 0:00:26.6]} 1/2-1/2

[Event "Late-Titled-Tuesday-Blitz-May-28-2024"]
[Site "Chess.com"]
[Date "2024.05.28"]
[Round "7"]
[White "MeisterJabo"]
[Black "ansko1999"]
[Result "0-1"]
[WhiteElo "2489"]
[BlackElo "2607"]
[TimeControl "180+1"]
[EndTime "15:19:25 PDT"]
[Termination "ansko1999 won by checkmate"]

1. e4 {[%clk 0:03:00.9]} 1... c5 {[%clk 0:02:59.3]} 2. Nf3 {[%clk 0:02:59.9]}
2... Nf6 {[%clk 0:02:59.9]} 3. e5 {[%clk 0:02:59.5]} 3... Nd5 {[%clk 0:03:00.2]}
4. Nc3 {[%clk 0:02:58.3]} 4... e6 {[%clk 0:02:58.8]} 5. Nxd5 {[%clk 0:02:57]}
5... exd5 {[%clk 0:02:59.7]} 6. Be2 {[%clk 0:02:55.4]} 6... Nc6 {[%clk 0:02:57]}
7. c3 {[%clk 0:02:54]} 7... d4 {[%clk 0:02:38.5]} 8. O-O {[%clk 0:02:52.6]} 8...
d6 {[%clk 0:02:37]} 9. Bb5 {[%clk 0:02:51.6]} 9... dxe5 {[%clk 0:02:28.3]} 10.
Nxe5 {[%clk 0:02:33.7]} 10... Bd7 {[%clk 0:02:18.7]} 11. Nxd7 {[%clk 0:02:23.8]}
11... Qxd7 {[%clk 0:02:19.6]} 12. Re1+ {[%clk 0:02:24.3]} 12... Be7 {[%clk
0:02:19.4]} 13. cxd4 {[%clk 0:02:24.1]} 13... cxd4 {[%clk 0:02:18.7]} 14. d3
{[%clk 0:02:17]} 14... O-O {[%clk 0:02:15.7]} 15. a3 {[%clk 0:02:09.2]} 15...
Rfe8 {[%clk 0:02:13.6]} 16. Bd2 {[%clk 0:02:06.1]} 16... Qf5 {[%clk 0:02:02.4]}
17. Qb3 {[%clk 0:01:52.1]} 17... Bg5 {[%clk 0:01:48.1]} 18. Bxg5 {[%clk
0:01:37.9]} 18... Qxg5 {[%clk 0:01:49]} 19. Bc4 {[%clk 0:01:33.8]} 19... Re7
{[%clk 0:01:41.1]} 20. Re4 {[%clk 0:00:27.1]} 20... Na5 {[%clk 0:01:00.9]} 21.
Qb5 {[%clk 0:00:22.9]} 21... Qxb5 {[%clk 0:00:52.6]} 22. Bxb5 {[%clk 0:00:23.8]}
22... Rxe4 {[%clk 0:00:47.8]} 23. dxe4 {[%clk 0:00:24.7]} 23... Nb3 {[%clk
0:00:44.4]} 24. Rd1 {[%clk 0:00:24]} 24... Rc8 {[%clk 0:00:40.7]} 25. Kf1 {[%clk
0:00:12.5]} 25... Rc2 {[%clk 0:00:31.6]} 26. Ba4 {[%clk 0:00:12.4]} 26... Rxb2
{[%clk 0:00:19.7]} 27. Rd3 {[%clk 0:00:12.7]} 27... Nd2+ {[%clk 0:00:13.6]} 28.
Ke1 {[%clk 0:00:09.4]} 28... b5 {[%clk 0:00:05.5]} 29. Rxd4 {[%clk 0:00:04.1]}
29... g6 {[%clk 0:00:05.3]} 30. Rxd2 {[%clk 0:00:03.8]} 30... Rb1+ {[%clk
0:00:05.3]} 31. Rd1 {[%clk 0:00:04.2]} 31... Rb2 {[%clk 0:00:03.9]} 32. Rd2
{[%clk 0:00:01.7]} 32... Rb1+ {[%clk 0:00:02.7]} 33. Bd1 {[%clk 0:00:02]} 33...
Ra1 {[%clk 0:00:03.1]} 34. Rd3 {[%clk 0:00:02.4]} 34... a5 {[%clk 0:00:03.4]}
35. Ke2 {[%clk 0:00:02.9]} 35... Kg7 {[%clk 0:00:03.5]} 36. Rd5 {[%clk
0:00:02.8]} 36... Rxa3 {[%clk 0:00:02.7]} 37. Rxb5 {[%clk 0:00:02.4]} 37... Ra2+
{[%clk 0:00:03.6]} 38. Ke1 {[%clk 0:00:02.6]} 38... Ra1 {[%clk 0:00:03.8]} 39.
f3 {[%clk 0:00:02.6]} 39... h5 {[%clk 0:00:04.4]} 40. Kd2 {[%clk 0:00:02.7]}
40... Kf6 {[%clk 0:00:05]} 41. Bc2 {[%clk 0:00:03]} 41... Rg1 {[%clk 0:00:04.9]}
42. f4 {[%clk 0:00:01.3]} 42... Rxg2+ {[%clk 0:00:05.4]} 43. Kd3 {[%clk
0:00:01.9]} 43... Rxh2 {[%clk 0:00:06.3]} 44. Rxa5 {[%clk 0:00:02.1]} 44... Rh3+
{[%clk 0:00:07]} 45. Kd4 {[%clk 0:00:01.8]} 45... Rh2 {[%clk 0:00:07.9]} 46.
Ra6+ {[%clk 0:00:02.4]} 46... Kg7 {[%clk 0:00:08.3]} 47. Bd3 {[%clk 0:00:03.2]}
47... h4 {[%clk 0:00:08.3]} 48. Ke5 {[%clk 0:00:03.5]} 48... h3 {[%clk
0:00:07.9]} 49. f5 {[%clk 0:00:04]} 49... gxf5 {[%clk 0:00:07.8]} 50. exf5
{[%clk 0:00:04.9]} 50... Rf2 {[%clk 0:00:07.8]} 51. Be4 {[%clk 0:00:04.5]} 51...
h2 {[%clk 0:00:07.7]} 52. Ra1 {[%clk 0:00:04]} 52... Kh6 {[%clk 0:00:07.8]} 53.
Rh1 {[%clk 0:00:03.6]} 53... Kg5 {[%clk 0:00:07.6]} 54. Rd1 {[%clk 0:00:02.4]}
54... f6+ {[%clk 0:00:08]} 55. Kd5 {[%clk 0:00:02.3]} 55... Kf4 {[%clk
0:00:07.8]} 56. Bd3 {[%clk 0:00:01.6]} 56... Ke3 {[%clk 0:00:07.1]} 57. Bb1
{[%clk 0:00:01.5]} 57... Kf3 {[%clk 0:00:06.1]} 58. Rh1 {[%clk 0:00:01.4]} 58...
Kf4 {[%clk 0:00:06.1]} 59. Bd3 {[%clk 0:00:01]} 59... Rd2 {[%clk 0:00:06.4]} 60.
Kc4 {[%clk 0:00:01]} 60... Kg3 {[%clk 0:00:06]} 61. Kc3 {[%clk 0:00:01.5]} 61...
Rf2 {[%clk 0:00:06.1]} 62. Kd4 {[%clk 0:00:02]} 62... Kg2 {[%clk 0:00:05.7]} 63.
Be4+ {[%clk 0:00:02.6]} 63... Kg3 {[%clk 0:00:06.3]} 64. Bd3 {[%clk 0:00:03.5]}
64... Rd2 {[%clk 0:00:06.3]} 65. Ke3 {[%clk 0:00:03.7]} 65... Rb2 {[%clk
0:00:06.9]} 66. Be4 {[%clk 0:00:04.1]} 66... Ra2 {[%clk 0:00:06.7]} 67. Bd3
{[%clk 0:00:04.5]} 67... Rb2 {[%clk 0:00:07]} 68. Kd4 {[%clk 0:00:04.9]} 68...
Rg2 {[%clk 0:00:06.7]} 69. Be4 {[%clk 0:00:04.8]} 69... Rd2+ {[%clk 0:00:06.7]}
70. Ke3 {[%clk 0:00:05.3]} 70... Rb2 {[%clk 0:00:06.8]} 71. Rc1 {[%clk
0:00:05.5]} 71... Rb3+ {[%clk 0:00:06.2]} 72. Kd4 {[%clk 0:00:05.6]} 72... Rb4+
{[%clk 0:00:06.2]} 73. Rc4 {[%clk 0:00:05.1]} 73... Rb2 {[%clk 0:00:04.6]} 74.
Rc6 {[%clk 0:00:05.5]} 74... Rd2+ {[%clk 0:00:03.9]} 75. Ke3 {[%clk 0:00:05.3]}
75... Rd1 {[%clk 0:00:03.9]} 76. Rxf6 {[%clk 0:00:05.1]} 76... Re1+ {[%clk
0:00:04.1]} 77. Kd2 {[%clk 0:00:02.5]} 77... Rxe4 {[%clk 0:00:04.7]} 78. Rg6+
{[%clk 0:00:02.4]} 78... Rg4 {[%clk 0:00:05.1]} 79. Rh6 {[%clk 0:00:02.9]} 79...
Rh4 {[%clk 0:00:05.2]} 80. Rg6+ {[%clk 0:00:03.6]} 80... Kf4 {[%clk 0:00:05.3]}
81. f6 {[%clk 0:00:04.5]} 81... h1=Q {[%clk 0:00:05.6]} 82. f7 {[%clk
0:00:05.4]} 82... Qd5+ {[%clk 0:00:05.9]} 83. Ke2 {[%clk 0:00:05.2]} 83... Qe4+
{[%clk 0:00:06]} 84. Kf2 {[%clk 0:00:05.1]} 84... Rh2+ {[%clk 0:00:06.3]} 85.
Kg1 {[%clk 0:00:05.8]} 85... Qh1# {[%clk 0:00:06.7]} 0-1

[Event "Late-Titled-Tuesday-Blitz-May-28-2024"]
[Site "Chess.com"]
[Date "2024.05.28"]
[Round "7"]
[White "Juliana_Figueira"]
[Black "VirtualCoach"]
[Result "0-1"]
[WhiteElo "1975"]
[BlackElo "2201"]
[TimeControl "180+1"]
[EndTime "15:19:29 PDT"]
[Termination "VirtualCoach won by checkmate"]

1. d4 {[%clk 0:03:00.9]} 1... Nf6 {[%clk 0:02:58.9]} 2. c4 {[%clk 0:03:00.7]}
2... e6 {[%clk 0:02:59.1]} 3. g3 {[%clk 0:02:59.4]} 3... d5 {[%clk 0:02:58.1]}
4. Bg2 {[%clk 0:02:59]} 4... c6 {[%clk 0:02:54.2]} 5. Qc2 {[%clk 0:02:55.1]}
5... Nbd7 {[%clk 0:02:52]} 6. Nf3 {[%clk 0:02:54.7]} 6... Bb4+ {[%clk
0:02:51.5]} 7. Bd2 {[%clk 0:02:53.1]} 7... Bd6 {[%clk 0:02:51.3]} 8. O-O {[%clk
0:02:52]} 8... O-O {[%clk 0:02:51.2]} 9. b3 {[%clk 0:02:44.3]} 9... Re8 {[%clk
0:02:50.6]} 10. Nc3 {[%clk 0:02:42.6]} 10... h6 {[%clk 0:02:44.5]} 11. e4 {[%clk
0:02:34.6]} 11... dxe4 {[%clk 0:02:44]} 12. Nxe4 {[%clk 0:02:34.9]} 12... Nxe4
{[%clk 0:02:44.3]} 13. Qxe4 {[%clk 0:02:35.3]} 13... Nf6 {[%clk 0:02:44.8]} 14.
Qc2 {[%clk 0:02:34.3]} 14... Qe7 {[%clk 0:02:22.2]} 15. Bc3 {[%clk 0:02:32.5]}
15... Bb4 {[%clk 0:02:20.2]} 16. Rfe1 {[%clk 0:02:30.4]} 16... Bxc3 {[%clk
0:02:20.1]} 17. Qxc3 {[%clk 0:02:30.4]} 17... Bd7 {[%clk 0:02:17.6]} 18. Ne5
{[%clk 0:02:28.5]} 18... Rac8 {[%clk 0:02:14]} 19. b4 {[%clk 0:02:28.1]} 19...
b5 {[%clk 0:02:09.4]} 20. cxb5 {[%clk 0:02:07.9]} 20... cxb5 {[%clk 0:02:08.6]}
21. Qb3 {[%clk 0:02:08.1]} 21... Qd6 {[%clk 0:01:58.2]} 22. Rad1 {[%clk
0:01:59.2]} 22... Rc7 {[%clk 0:01:44.6]} 23. Nd3 {[%clk 0:01:55.3]} 23... Bc6
{[%clk 0:01:38.3]} 24. Nc5 {[%clk 0:01:51.2]} 24... Bxg2 {[%clk 0:01:37]} 25.
Kxg2 {[%clk 0:01:52.1]} 25... Rec8 {[%clk 0:01:35.5]} 26. Qe3 {[%clk 0:01:39.3]}
26... Nd5 {[%clk 0:01:34.6]} 27. Qd2 {[%clk 0:01:31.9]} 27... Qc6 {[%clk
0:01:32.3]} 28. f3 {[%clk 0:01:25.4]} 28... Nb6 {[%clk 0:01:30.4]} 29. Qe3
{[%clk 0:01:13.2]} 29... Nc4 {[%clk 0:01:29.7]} 30. Qe4 {[%clk 0:01:10.2]} 30...
Rd8 {[%clk 0:01:19.9]} 31. Re2 {[%clk 0:00:55.7]} 31... Qxe4 {[%clk 0:01:02.9]}
32. fxe4 {[%clk 0:00:50.2]} 32... a5 {[%clk 0:01:03.1]} 33. a3 {[%clk
0:00:48.7]} 33... Nxa3 {[%clk 0:00:58.9]} 34. Ra2 {[%clk 0:00:46.2]} 34... Nc4
{[%clk 0:00:58.8]} 35. Na6 {[%clk 0:00:29.2]} 35... Rc6 {[%clk 0:00:57.1]} 36.
Nc5 {[%clk 0:00:26.2]} 36... Ne3+ {[%clk 0:00:56.6]} 37. Kf3 {[%clk 0:00:24.6]}
37... Nxd1 {[%clk 0:00:56.5]} 38. Rxa5 {[%clk 0:00:23.5]} 38... Nc3 {[%clk
0:00:51.3]} 39. Ke3 {[%clk 0:00:22.7]} 39... Rb6 {[%clk 0:00:29.3]} 40. Kd3
{[%clk 0:00:22.1]} 40... Nd1 {[%clk 0:00:26]} 41. Ke2 {[%clk 0:00:18.6]} 41...
Nb2 {[%clk 0:00:24.1]} 42. Ke3 {[%clk 0:00:17.6]} 42... Nc4+ {[%clk 0:00:22.7]}
43. Kd3 {[%clk 0:00:17.3]} 43... Nxa5 {[%clk 0:00:21.6]} 44. bxa5 {[%clk
0:00:18.2]} 44... Rc6 {[%clk 0:00:20.7]} 45. Kc3 {[%clk 0:00:18.3]} 45... Ra8
{[%clk 0:00:18.6]} 46. Kb4 {[%clk 0:00:18]} 46... Rd6 {[%clk 0:00:16.8]} 47. Nb3
{[%clk 0:00:14.6]} 47... Rb8 {[%clk 0:00:13.3]} 48. e5 {[%clk 0:00:13.2]} 48...
Rd5 {[%clk 0:00:13.1]} 49. Kc3 {[%clk 0:00:12.4]} 49... b4+ {[%clk 0:00:12.1]}
50. Kc4 {[%clk 0:00:12.6]} 50... Kf8 {[%clk 0:00:08.9]} 51. Nc5 {[%clk
0:00:12.1]} 51... Ra8 {[%clk 0:00:05.9]} 52. a6 {[%clk 0:00:12.2]} 52... Rxc5+
{[%clk 0:00:04.9]} 53. dxc5 {[%clk 0:00:11.8]} 53... Rxa6 {[%clk 0:00:05.2]} 54.
Kxb4 {[%clk 0:00:12.5]} 54... Rc6 {[%clk 0:00:05]} 55. Kb5 {[%clk 0:00:13.4]}
55... Rc8 {[%clk 0:00:05.2]} 56. c6 {[%clk 0:00:13.4]} 56... Ke7 {[%clk
0:00:05.8]} 57. Kb6 {[%clk 0:00:14]} 57... Kd8 {[%clk 0:00:06.4]} 58. Kb7 {[%clk
0:00:14.3]} 58... Rc7+ {[%clk 0:00:06.6]} 59. Kb6 {[%clk 0:00:14.2]} 59... f6
{[%clk 0:00:07.2]} 60. exf6 {[%clk 0:00:13.8]} 60... gxf6 {[%clk 0:00:08.1]} 61.
h3 {[%clk 0:00:14]} 61... e5 {[%clk 0:00:08.5]} 62. Kc5 {[%clk 0:00:14]} 62...
e4 {[%clk 0:00:08.9]} 63. Kd4 {[%clk 0:00:14.1]} 63... f5 {[%clk 0:00:08.5]} 64.
Ke3 {[%clk 0:00:12.7]} 64... Rxc6 {[%clk 0:00:08.7]} 65. g4 {[%clk 0:00:12.4]}
65... Rb6 {[%clk 0:00:08.8]} 66. gxf5 {[%clk 0:00:11.9]} 66... Ke7 {[%clk
0:00:08.1]} 67. Kxe4 {[%clk 0:00:11.4]} 67... Kf6 {[%clk 0:00:09]} 68. Kf4
{[%clk 0:00:10.8]} 68... Rb4+ {[%clk 0:00:09.6]} 69. Kg3 {[%clk 0:00:11]} 69...
Kxf5 {[%clk 0:00:10.4]} 70. h4 {[%clk 0:00:10.8]} 70... h5 {[%clk 0:00:10.5]}
71. Kh3 {[%clk 0:00:10.9]} 71... Rb3+ {[%clk 0:00:10.9]} 72. Kg2 {[%clk
0:00:11]} 72... Kg4 {[%clk 0:00:11.4]} 73. Kh2 {[%clk 0:00:11.6]} 73... Kxh4
{[%clk 0:00:11.4]} 74. Kg1 {[%clk 0:00:12]} 74... Kg4 {[%clk 0:00:11.5]} 75. Kf1
{[%clk 0:00:12.9]} 75... h4 {[%clk 0:00:12.4]} 76. Ke1 {[%clk 0:00:13.8]} 76...
Rb2 {[%clk 0:00:12]} 77. Kd1 {[%clk 0:00:14.7]} 77... Rh2 {[%clk 0:00:11.9]} 78.
Kc1 {[%clk 0:00:14.4]} 78... Kg3 {[%clk 0:00:12.5]} 79. Kd1 {[%clk 0:00:15.3]}
79... Rf2 {[%clk 0:00:13.3]} 80. Ke1 {[%clk 0:00:16.2]} 80... h3 {[%clk
0:00:13.2]} 81. Kd1 {[%clk 0:00:17.1]} 81... h2 {[%clk 0:00:13.9]} 82. Kc1
{[%clk 0:00:17.9]} 82... h1=R# {[%clk 0:00:13.5]} 0-1